bitfinex-derivatives/quotes_SOLF0:USTF0_20250522
["timestamp","ask_amount","ask_price","bid_price","bid_amount"]
[1747955620529,5.584,179.03,179.0,5.5847]
[1747955620722,111.62,179.07,178.99,0.03776791]
[1747955620926,5.5836,179.05,179.02,5.5841]
[1747955621227,5.5836,179.05,179.02,0.03952143]
[1747955621526,5.5839,179.03,179.02,0.03952143]
[1747955625723,9.29165242,179.03,179.02,0.03952143]
[1747955629541,3.70775242,179.03,179.02,0.03952143]
[1747955630230,9.29115242,179.05,179.02,0.03952143]
[1747955630538,3.70775242,179.05,179.02,0.03952143]
[1747955630733,3.70775242,179.05,179.03,5.5837]
[1747955630942,5.5832,179.06,179.02,0.03952143]
[1747955631436,5.5832,179.06,179.03,5.5839]
[1747955632037,5.5834,179.05,179.03,5.5839]
[1747955632741,5.583,179.06,179.04,5.5836]
[1747955632930,5.583,179.06,179.02,0.03952143]
[1747955633339,5.5833,179.05,179.03,5.5838]
[1747955633639,3.70775242,179.07,179.03,5.5838]
[1747955634133,5.5832,179.06,179.03,5.5838]
[1747955634340,3.70775242,179.07,179.03,5.5838]
[1747955634741,5.5832,179.06,179.03,5.5838]
[1747955634932,5.5832,179.06,179.02,0.03952143]
[1747955635133,111.6,179.09,179.02,0.03952143]
[1747955635337,115.30775242,179.09,179.02,0.03952143]
[1747955635539,120.88995242,179.09,179.05,5.5831]
[1747955636042,120.88995242,179.09,179.06,5.5829]
[1747955636236,120.88995242,179.09,179.06,0.03559948]
[1747955636941,5.5825,179.08,179.06,0.03559948]
[1747955638840,5.5823,179.09,179.06,0.03559948]
[1747955639645,5.5825,179.08,179.06,0.03559948]
[1747955640549,5.5825,179.08,179.06,5.61849948]
[1747955640845,3.70775242,179.1,179.06,0.03559948]
[1747955641649,5.5825,179.08,179.06,0.03559948]
[1747955643651,5.5825,179.08,179.06,5.61859948]
[1747955643947,5.5825,179.08,179.06,0.03559948]
[1747955644148,3.70775242,179.1,179.06,0.03559948]
[1747955644448,3.70775242,179.08,178.99,111.58]
[1747955644750,5.5843,179.02,178.99,5.5851]
[1747955644946,3.70775242,179.04,178.96,113.6283]
[1747955645346,3.70775242,179.02,178.96,113.6283]
[1747955645547,0.03480161,179.01,178.98,5.5853]
[1747955645853,5.61960161,179.01,178.98,5.5853]
[1747955646851,0.03480161,179.01,178.98,5.5853]
[1747955647351,5.61960161,179.01,178.98,5.5853]
[1747955647949,0.03480161,179.01,178.99,5.5852]
[1747955648653,0.03480161,179.01,179.0,5.5849]
[1747955654959,5.2143072,179.09,179.0,111.76]
[1747955655153,5.5831,179.06,179.0,111.76]
[1747955655353,5.2143072,179.09,179.0,111.76]
[1747955655354,5.2143072,179.09,179.04,5.5836]
[1747955655554,5.5829,179.07,179.04,5.5836]
[1747955655761,5.2143072,179.09,179.04,0.03739635]
[1747955656660,5.5833,179.05,179.04,0.03739635]
[1747955656961,5.2143072,179.09,179.04,0.03739635]
[1747955657255,5.5832,179.06,179.04,0.03739635]
[1747955660266,5.5833,179.05,179.04,0.03739635]
[1747955660966,5.5832,179.06,179.04,0.03739635]
[1747955662269,5.5833,179.05,179.04,0.03739635]
[1747955665466,117.3431,179.06,179.04,0.03739635]
[1747955665779,111.76,179.06,179.04,0.03739635]
[1747955665968,117.3431,179.06,179.04,0.03739635]
[1747955667369,111.76,179.06,179.04,5.62079635]
[1747955667569,116.9743072,179.09,179.04,0.03739635]
[1747955667877,3.70558549,179.08,179.04,0.03739635]
[1747955668871,5.5829,179.07,179.04,5.62099635]
[1747955670872,9.28848549,179.07,179.04,5.62099635]
[1747955671680,3.70558549,179.07,179.04,0.03739635]
[1747955672179,5.5833,179.05,179.04,0.03739635]
[1747955672579,111.76,179.09,179.04,0.03739635]
[1747955672778,5.5833,179.05,179.04,0.03739635]
[1747955674480,5.5831,179.06,179.04,0.03739635]
[1747955674681,9.28868549,179.06,179.04,0.03739635]
[1747955674881,3.70558549,179.06,179.04,0.03739635]
[1747955675584,5.5833,179.05,179.04,0.03739635]
[1747955678284,111.76,179.05,178.96,5.41947923]
[1747955678581,3.70558549,179.01,178.96,5.41947923]
[1747955679185,0.03739635,179.0,178.97,0.03933967]
[1747955679386,5.62249635,179.0,178.97,0.03933967]
[1747955679989,5.62249635,179.0,178.97,5.62503967]
[1747955682393,5.62249635,179.0,178.98,5.5855]
[1747955682689,0.03739635,179.0,178.97,0.03933967]
[1747955683190,5.62229635,179.0,178.98,5.5852]
[1747955683790,0.03739635,179.0,178.98,5.5852]
[1747955684090,0.03739635,179.0,178.99,5.5852]
[1747955684591,0.03739635,179.0,178.97,0.03933967]
[1747955684783,0.03739635,179.0,178.98,5.5854]
[1747955685887,5.62229635,179.0,178.97,5.62503967]
[1747955686188,5.62229635,179.0,178.97,0.03933967]
[1747955686391,0.03739635,179.0,178.97,0.03933967]
[1747955686592,0.03739635,179.0,178.99,5.5852]
[1747955688387,5.2143072,179.05,179.03,5.5839]
[1747955688595,8.91989269,179.06,178.98,115.4722]
[1747955688883,3.70558549,179.04,178.98,115.4722]
[1747955689397,3.70558549,179.02,178.99,0.04095925]
[1747955690595,5.5848,179.01,178.99,0.04095925]
[1747955692500,9.28998549,179.02,178.99,5.62605925]
[1747955695104,9.28998549,179.02,179.0,5.5849]
[1747955695606,9.28998549,179.02,178.99,0.04095925]
[1747955696007,9.28998549,179.02,178.99,5.62595925]
[1747955696305,3.70558549,179.02,178.99,0.04095925]
[1747955696706,3.70558549,179.02,179.0,5.5848]
[1747955697002,3.70558549,179.02,178.99,0.04095925]
[1747955697003,9.28988549,179.02,178.99,0.04095925]
[1747955697198,3.70558549,179.02,178.99,0.04095925]
[1747955697600,3.70558549,179.02,179.0,5.5847]
[1747955698302,5.5841,179.03,179.0,5.5847]
[1747955698502,9.28968549,179.03,179.0,5.5847]
[1747955698705,9.28968549,179.03,179.01,5.5845]
[1747955698902,5.5843,179.02,178.99,0.04095925]
[1747955700010,5.5843,179.02,179.0,5.5847]
[1747955700206,5.5843,179.02,178.99,0.04095925]
[1747955700506,3.70558549,179.03,178.99,0.04095925]
[1747955701004,5.5848,179.01,178.99,0.04095925]
[1747955702213,5.5843,179.02,178.99,5.62605925]
[1747955703214,9.28968549,179.03,179.0,5.5848]
[1747955703810,5.5843,179.02,179.0,5.5848]
[1747955704013,5.5843,179.02,178.99,0.04095925]
[1747955704014,5.5843,179.02,178.99,5.62605925]
[1747955704710,5.5847,179.01,178.99,0.04095925]
[1747955705914,3.70558549,179.03,178.99,0.04095925]
[1747955706507,9.28968549,179.03,179.0,5.5849]
[1747955707312,5.5843,179.02,179.0,5.5849]
[1747955707914,9.28968549,179.03,179.0,5.5849]
[1747955709117,5.5843,179.02,179.0,5.5849]
[1747955709722,5.5843,179.02,178.99,5.62605925]
[1747955710621,5.5843,179.02,179.0,5.5848]
[1747955710816,9.28958549,179.03,179.0,5.5848]
[1747955711817,5.2143072,179.07,179.0,111.6]
[1747955712011,5.2143072,179.07,179.01,3.8432]
[1747955712317,3.70558549,179.05,179.01,1.9295]
[1747955712819,3.70558549,179.05,179.03,5.5839]
[1747955714420,3.70558549,179.05,179.02,5.5841]
[1747955714717,9.28898549,179.05,179.02,5.5841]
[1747955715111,9.28898549,179.05,179.01,7.5139]
[1747955715315,9.28898549,179.05,179.0,111.6]
[1747955715316,3.70558549,179.05,179.0,111.6]
[1747955715516,3.70558549,179.03,178.99,0.04095925]
[1747955716327,3.70558549,179.01,178.99,0.04095925]
[1747955716514,5.5849,179.0,178.99,0.04095925]
[1747955724531,5.5847,179.01,178.99,0.04095925]
[1747955724729,5.2143072,179.05,178.99,0.04095925]
[1747955725530,5.5846,179.01,178.99,0.04095925]
[1747955725727,5.2143072,179.05,178.99,0.04095925]
[1747955726231,5.2143072,179.05,178.99,5.62595925]
[1747955727033,5.2143072,179.05,178.99,0.04095925]
[1747955728434,5.5848,179.01,178.99,0.04095925]
[1747955728937,5.5844,179.02,178.99,5.62605925]
[1747955729331,122.18798752,179.06,178.99,0.04095925]
[1747955729736,5.5849,179.0,178.99,0.04095925]
[1747955733141,5.5847,179.01,178.99,0.04095925]
[1747955733843,111.18,179.02,178.99,0.04095925]
[1747955734539,116.7643,179.02,179.0,5.5847]
[1747955735039,111.18,179.02,178.99,0.04095925]
[1747955735744,116.7644,179.02,179.0,5.5849]
[1747955736546,116.7644,179.02,178.99,5.62605925]
[1747955737547,116.7644,179.02,178.99,0.04095925]
[1747955738047,116.7644,179.02,178.99,5.62585925]
[1747955738948,111.18,179.02,178.99,5.62585925]
[1747955739247,111.18,179.02,178.99,0.04095925]
[1747955739746,5.584,179.03,179.0,5.5847]
[1747955741349,5.5843,179.02,178.99,5.62605925]
[1747955741645,3.70701242,179.04,178.99,5.62605925]
[1747955741948,5.5844,179.02,178.99,5.62605925]
[1747955742250,5.5844,179.02,179.0,5.5849]
[1747955742653,5.5841,179.03,179.0,5.5849]
[1747955743051,5.5843,179.02,179.0,5.5849]
[1747955743245,5.5843,179.02,178.99,5.62605925]
[1747955743445,3.70701242,179.04,178.99,0.04095925]
[1747955743638,5.5846,179.01,178.99,0.04095925]
[1747955743845,3.70701242,179.02,178.99,0.04095925]
[1747955745056,5.5849,179.0,178.99,0.04095925]
[1747955747359,5.5847,179.01,178.99,0.04095925]
[1747955749159,5.5849,179.0,178.99,0.04095925]
[1747955754259,5.5847,179.01,178.99,0.04095925]
[1747955754558,3.70701242,179.02,178.99,0.04095925]
[1747955755160,5.5849,179.0,178.99,0.04095925]
[1747955760562,5.5847,179.01,178.99,0.04095925]
[1747955762362,3.70701242,179.02,178.99,5.62605925]
[1747955762363,9.29141242,179.02,178.99,5.62605925]
[1747955762757,3.70701242,179.02,178.99,0.04095925]
[1747955763666,5.5848,179.01,178.99,0.04095925]
[1747955764162,5.5848,179.01,178.99,5.62605925]
[1747955764462,3.70701242,179.02,178.99,5.62605925]
[1747955765568,5.5846,179.01,178.99,5.62605925]
[1747955766665,9.29141242,179.02,178.99,5.62605925]
[1747955768173,5.5847,179.01,178.99,0.04095925]
[1747955768365,3.70701242,179.02,178.99,0.04095925]
[1747955768671,9.29131242,179.02,178.99,5.62595925]
[1747955769172,5.5846,179.01,178.99,5.62595925]
[1747955769573,3.70701242,179.02,178.99,5.62595925]
[1747955769773,9.29141242,179.02,178.99,5.62595925]
[1747955770673,5.5846,179.01,178.99,5.62595925]
[1747955770978,9.29141242,179.02,178.99,5.62595925]
[1747955772178,5.5844,179.02,178.99,5.62595925]
[1747955772379,5.5846,179.01,178.99,5.62595925]
[1747955772580,3.70742229,179.03,178.99,5.62595925]
[1747955772880,5.5844,179.02,178.99,5.62595925]
[1747955774280,5.5846,179.01,178.99,5.62595925]
[1747955774583,3.70742229,179.03,178.99,5.62595925]
[1747955774782,3.70742229,179.03,179.0,5.5849]
[1747955774986,5.5844,179.02,178.99,0.04095925]
[1747955775282,3.70742229,179.03,178.99,0.04095925]
[1747955777585,5.5844,179.02,179.0,5.5848]
[1747955777782,3.70725272,179.03,178.99,0.04095925]
[1747955778185,3.70771089,179.02,178.99,0.04095925]
[1747955778486,3.70829071,179.01,178.99,0.04095925]
[1747955779389,5.5849,179.0,178.99,0.04095925]
[1747955780476,3.70829071,179.02,178.99,0.04095925]
[1747955780881,114.72829071,179.02,178.99,0.04095925]
[1747955781282,5.5849,179.0,178.99,0.04095925]
[1747955781482,9.29319071,179.0,178.99,0.04095925]
[1747955782990,5.5847,179.01,178.99,0.04095925]
[1747955784392,5.5849,179.0,178.99,0.04095925]
[1747955784789,119.94259791,179.02,178.99,0.04095925]
[1747955785093,5.5848,179.01,178.99,0.04095925]
[1747955786383,5.5848,179.01,178.99,5.62615925]
[1747955787592,111.02,179.02,179.0,5.5846]
[1747955787790,5.2143072,179.03,178.99,0.04095925]
[1747955787994,5.2143072,179.04,178.99,6.08425925]
[1747955788295,5.2143072,179.04,179.03,5.5839]
[1747955788493,6.9524096,179.07,179.0,3.70829071]
[1747955788794,6.9524096,179.07,179.02,3.70829071]
[1747955788984,6.9524096,179.07,179.03,0.03693544]
[1747955789181,6.9524096,179.07,179.06,5.583]
[1747955789794,6.9524096,179.07,179.05,5.5832]
[1747955790096,6.9524096,179.07,179.03,0.03693544]
[1747955790290,5.5833,179.06,179.03,0.03693544]
[1747955790588,6.9524096,179.07,179.03,0.03693544]
[1747955790797,5.5834,179.05,179.03,0.03693544]
[1747955790991,3.70829071,179.1,179.03,0.03693544]
[1747955791496,5.5836,179.04,179.03,0.03693544]
[1747955800509,9.29189071,179.04,179.03,0.03693544]
[1747955808313,9.29189071,179.04,178.97,111.0]
[1747955808314,5.5853,178.99,178.97,111.0]
[1747955808513,5.5853,178.99,178.94,114.9243]
[1747955808721,5.5853,178.99,178.96,5.5858]
[1747955808915,5.585,179.0,178.94,114.9243]
[1747955809116,5.585,179.0,178.97,5.5856]
[1747955809316,0.03693545,179.0,178.97,0.03530185]
[1747955809722,0.03693545,179.0,178.98,5.5855]
[1747955810416,0.03693545,179.0,178.99,5.5852]
[1747955811323,5.5834,179.05,179.02,5.584]
[1747955811725,120.27139071,179.06,179.02,5.584]
[1747955812227,120.27139071,179.06,179.02,5.62435794]
[1747955812426,120.27139071,179.06,179.03,5.5838]
[1747955814515,5.5833,179.05,179.03,5.5838]
[1747955814719,5.5833,179.05,179.02,5.62445794]
[1747955814920,9.29159071,179.05,179.02,0.04035794]
[1747955815428,5.5836,179.04,179.02,5.62455794]
[1747955815629,3.70829071,179.05,179.02,5.62455794]
[1747955816130,3.70829071,179.05,179.03,5.5839]
[1747955816429,3.70829071,179.05,179.02,0.04035794]
[1747955816630,9.29179071,179.05,179.02,0.04035794]
[1747955816827,9.29179071,179.05,179.02,5.62435794]
[1747955818329,3.70829071,179.05,179.03,5.5839]
[1747955818530,3.70829071,179.05,179.02,0.04035794]
[1747955818933,9.29189071,179.05,179.02,5.62445794]
[1747955826737,5.5837,179.04,179.02,0.04035794]
[1747955827538,9.29179071,179.05,179.02,5.62445794]
[1747955828538,5.5837,179.04,179.02,5.62445794]
[1747955831041,9.29169071,179.05,179.02,5.62445794]
[1747955831337,3.70829071,179.05,179.02,5.62445794]
[1747955831537,9.29179071,179.05,179.02,5.62445794]
[1747955833042,3.70829071,179.05,179.02,0.04035794]
[1747955833542,5.5838,179.04,179.02,5.62445794]
[1747955833735,5.5838,179.04,179.02,0.04035794]
[1747955834542,5.5839,179.03,179.02,0.04035794]
[1747955835743,9.29219071,179.03,179.02,0.04035794]
[1747955836937,5.5852,179.0,178.95,116.35947923]
[1747955837241,3.70829071,179.01,178.98,5.5855]
[1747955837738,3.70829071,179.02,178.95,116.35947923]
[1747955838045,3.70829071,179.02,179.0,5.5847]
[1747955838244,3.70829071,179.02,178.97,0.03865902]
[1747955838444,3.70829071,179.02,178.98,5.5855]
[1747955838648,3.70829071,179.02,178.97,0.03865902]
[1747955838838,9.29269071,179.02,178.97,0.03865902]
[1747955839141,5.5844,179.02,178.97,0.03865902]
[1747955839445,9.29269071,179.02,178.97,0.03865902]
[1747955841346,9.29269071,179.02,178.99,5.585]
[1747955842245,3.70829071,179.02,179.0,5.5848]
[1747955842845,9.29259071,179.02,179.0,5.5848]
[1747955843543,3.70829071,179.02,179.0,5.5848]
[1747955845648,9.29259071,179.02,179.0,5.5848]
[1747955846750,9.29259071,179.02,178.99,5.5851]
[1747955847749,9.29259071,179.02,179.0,5.5848]
[1747955848951,3.70829071,179.02,179.0,5.5848]
[1747955849250,3.70829071,179.02,178.97,0.03865902]
[1747955849251,3.70829071,179.02,179.01,5.5846]
[1747955849458,0.03982463,179.03,178.97,0.03865902]
[1747955852254,0.03982463,179.03,179.02,5.5843]
[1747955855154,0.03982463,179.03,179.01,5.62734398]
[1747955855357,0.03982463,179.03,179.01,0.04284398]
[1747955855557,5.5843,179.02,179.01,0.04284398]
[1747955856167,5.62392463,179.03,179.01,0.04284398]
[1747955856550,0.03982463,179.03,179.01,0.04284398]
[1747955857155,0.03982463,179.03,179.01,5.62724398]
[1747955857660,0.03982463,179.03,179.01,0.04284398]
[1747955858356,5.5843,179.02,179.01,0.04284398]
[1747955858556,0.03982463,179.03,179.01,0.04284398]
[1747955859058,5.62392463,179.03,179.01,5.62734398]
[1747955861357,0.03982463,179.03,179.01,5.62734398]
[1747955861556,0.03982463,179.03,179.02,5.5843]
[1747955883784,0.03982463,179.03,179.01,0.04284398]
[1747955883970,9.33211534,179.03,179.01,0.04284398]
[1747955884279,9.33131408,179.03,179.01,0.04284398]
[1747955884677,3.74731408,179.03,179.01,0.04284398]
[1747955884884,0.03982463,179.03,179.01,0.04284398]
[1747955885178,0.03982463,179.03,179.02,5.5843]
[1747955893588,0.03982463,179.03,179.01,5.62724398]
[1747955893891,0.03982463,179.03,179.01,0.04284398]
[1747955894294,0.03982463,179.03,179.02,5.5843]
[1747955895797,0.03982463,179.03,179.01,5.62724398]
[1747955896200,0.03982463,179.03,179.01,0.04284398]
[1747955897089,0.03982463,179.03,179.02,5.5843]
[1747955910410,5.22265903,179.07,179.06,5.583]
[1747955912014,14.50931927,179.11,179.08,5.5823]
[1747955912221,14.50931927,179.11,179.05,0.0417476]
[1747955912406,5.5819,179.1,179.05,0.0417476]
[1747955912615,5.5819,179.1,179.08,5.5824]
[1747955912814,5.22265903,179.11,179.05,0.0417476]
[1747955913623,5.5819,179.1,179.07,5.5825]
[1747955913821,5.5819,179.1,179.05,0.0417476]
[1747955914521,5.5821,179.09,179.07,5.5827]
[1747955914723,5.5821,179.09,179.05,0.0417476]
[1747955915120,5.5821,179.09,179.06,5.5827]
[1747955916624,5.5819,179.1,179.05,0.0417476]
[1747955917228,5.5819,179.1,179.07,5.5825]
[1747955920628,5.5819,179.1,179.08,5.5824]
[1747955921325,5.5815,179.11,179.05,106.1417476]
[1747955921625,5.5815,179.11,179.06,110.82]
[1747955922430,5.5815,179.11,179.09,5.582]
[1747955923131,5.5815,179.11,179.08,5.5822]
[1747955923426,5.22265903,179.14,179.09,3.70516024]
[1747955923633,5.22265903,179.14,179.11,3.70516024]
[1747955924131,5.22265903,179.14,179.12,5.5811]
[1747955924330,5.22265903,179.14,179.11,3.70516024]
[1747955925132,5.22265903,179.14,179.13,5.5808]
[1747955926627,5.5801,179.16,179.13,5.5808]
[1747955927132,5.5802,179.15,179.12,5.5811]
[1747955927432,5.5802,179.15,179.12,5.62407701]
[1747955927735,5.5802,179.15,179.12,0.04297701]
[1747955927929,5.5805,179.14,179.12,0.04297701]
[1747955928130,3.70516024,179.17,179.12,0.04297701]
[1747955928833,5.5808,179.13,179.12,0.04297701]
[1747955932632,5.5806,179.14,179.12,0.04297701]
[1747955933235,5.5803,179.15,179.12,5.62407701]
[1747955935437,5.5805,179.14,179.12,5.62407701]
[1747955936037,5.5802,179.15,179.12,5.62407701]
[1747955936432,5.5802,179.15,179.13,5.5808]
[1747955936634,5.5799,179.16,179.13,5.5808]
[1747955936832,110.82,179.19,179.13,5.5808]
[1747955937032,114.52516024,179.19,179.12,5.62397701]
[1747955937740,5.5802,179.16,179.12,5.62397701]
[1747955938140,5.5802,179.16,179.13,5.5808]
[1747955938841,5.5797,179.17,179.14,5.5803]
[1747955939337,5.5797,179.17,179.15,5.5802]
[1747955939545,5.5793,179.18,179.15,5.5802]
[1747955939838,114.52516024,179.19,179.15,5.5802]
[1747955940142,5.5793,179.18,179.15,5.5802]
[1747955941042,5.5793,179.18,179.14,5.5804]
[1747955941343,114.52516024,179.19,179.12,0.04297701]
[1747955941546,114.52516024,179.19,179.13,5.5807]
[1747955942037,5.5798,179.17,179.13,5.5807]
[1747955942236,5.5798,179.17,179.14,5.5805]
[1747955942446,114.52516024,179.19,179.14,5.5805]
[1747955942640,5.5795,179.18,179.14,5.5805]
[1747955942943,5.5795,179.18,179.15,5.5802]
[1747955943247,110.82,179.19,179.12,0.04297701]
[1747955943446,3.70516024,179.21,179.12,0.04297701]
[1747955943743,5.5789,179.2,179.13,3.70516024]
[1747955943946,5.5789,179.2,179.13,114.42516024]
[1747955944147,3.70516024,179.21,179.13,114.42516024]
[1747955946346,5.5787,179.2,179.17,5.5794]
[1747955946545,5.5787,179.2,179.17,5.61972543]
[1747955947240,5.5793,179.18,179.17,0.04032543]
[1747955948246,9.28446024,179.18,179.17,0.04032543]
[1747955948946,5.5793,179.18,179.17,0.04032543]
[1747955949138,9.28446024,179.18,179.17,0.04032543]
[1747955950653,5.5793,179.18,179.17,0.04032543]
[1747955951955,9.28406024,179.2,179.17,0.04032543]
[1747955952150,5.5789,179.2,179.17,0.04032543]
[1747955952350,114.42516024,179.22,179.17,0.04032543]
[1747955952551,110.72,179.22,179.17,0.04032543]
[1747955953159,110.72,179.22,179.2,5.5786]
[1747955953454,5.5779,179.23,179.2,5.5786]
[1747955953657,5.578,179.22,179.19,5.5789]
[1747955954354,5.5784,179.21,179.19,5.5789]
[1747955954858,5.22265903,179.24,179.17,3.74548567]
[1747955955055,5.5776,179.24,179.17,3.74548567]
[1747955955254,8.92781927,179.26,179.2,5.5784]
[1747955955454,5.5778,179.23,179.21,0.040825]
[1747955956661,5.22265903,179.26,179.21,0.040825]
[1747955957261,5.5777,179.23,179.21,0.040825]
[1747955958966,5.578,179.22,179.21,0.040825]
[1747955963077,5.5778,179.23,179.21,0.040825]
[1747955963272,1.9487,179.26,179.21,0.040825]
[1747955963974,5.5779,179.23,179.21,0.040825]
[1747955964175,1.9487,179.26,179.21,0.040825]
[1747955964779,5.5778,179.23,179.21,0.040825]
[1747955965574,5.578,179.22,179.21,0.040825]
[1747955965881,5.77927697,179.22,179.11,110.66]
[1747955966075,5.5805,179.15,179.11,5.5813]
[1747955966379,110.66,179.17,179.08,110.66]
[1747955966680,5.5811,179.13,179.11,0.03844371]
[1747955968879,5.5806,179.14,179.11,0.03844371]
[1747955969979,5.5809,179.13,179.11,0.03844371]
[1747955970977,0.03768962,179.15,179.11,0.03844371]
[1747955971280,5.5811,179.12,179.11,0.03844371]
[1747955972375,5.5809,179.13,179.11,0.03844371]
[1747955972783,5.5811,179.12,179.11,0.03844371]
[1747955976888,116.2811,179.12,179.11,0.03844371]
[1747955986295,116.28,179.12,178.99,3.9195]
[1747955986591,5.77927697,179.1,178.99,5.585]
[1747955986795,5.77927697,179.06,178.97,5.41947923]
[1747955986991,5.77927697,179.02,178.97,5.41947923]
[1747955987194,110.75899737,179.01,178.98,0.04014622]
[1747955987393,5.5852,178.99,178.98,0.04014622]
[1747955988697,112.65109737,179.01,178.88,3.9344]
[1747955989002,5.77927697,178.98,178.87,8.8968575]
[1747955989196,5.5881,178.9,178.87,3.3079575]
[1747955989700,5.5883,178.89,178.87,3.34635654]
[1747955990099,0.03948647,178.9,178.87,3.34635654]
[1747955990500,5.62778647,178.9,178.87,3.34635654]
[1747955991103,0.03948647,178.9,178.87,3.34635654]
[1747955992204,0.03948647,178.9,178.87,0.03839904]
[1747955993605,0.03948647,178.9,178.87,5.62729904]
[1747955994299,0.03948647,178.9,178.87,0.03839904]
[1747955995307,0.03948647,178.9,178.87,5.62729904]
[1747955995605,5.62758647,178.9,178.87,0.03839904]
[1747955995995,0.03948647,178.9,178.87,0.03839904]
[1747955997008,0.03948647,178.9,178.87,5.62729904]
[1747955997506,5.62758647,178.9,178.87,5.62729904]
[1747955997708,5.62758647,178.9,178.87,0.03839904]
[1747955998402,0.03948647,178.9,178.87,5.62729904]
[1747955999111,5.5884,178.89,178.87,0.03839904]
[1747956000504,5.62748647,178.9,178.87,0.03839904]
[1747956000697,0.03948647,178.9,178.87,0.03839904]
[1747956001209,0.03948647,178.9,178.87,5.62709904]
[1747956001613,0.03948647,178.9,178.87,0.03839904]
[1747956001908,5.5886,178.88,178.87,0.03839904]
[1747956003310,110.82,178.89,178.87,0.03839904]
[1747956003510,0.03948647,178.9,178.87,0.03839904]
[1747956003707,110.85948647,178.9,178.87,0.03839904]
[1747956004514,0.03948647,178.9,178.87,0.03839904]
[1747956005215,0.03948647,178.9,178.89,5.5883]
[1747956007112,0.03948647,178.9,178.88,5.5885]
[1747956007516,0.03948647,178.9,178.87,0.03839904]
[1747956007707,0.03948647,178.9,178.88,5.5884]
[1747956008623,0.03948647,178.9,178.89,5.5883]
[1747956010015,110.84,178.95,178.88,3.8554]
[1747956010215,110.84,178.96,178.88,3.8554]
[1747956010915,0.04077029,178.94,178.9,0.04148688]
[1747956011222,5.5873,178.93,178.9,5.62948688]
[1747956011417,0.04077029,178.94,178.9,0.04148688]
[1747956011918,5.62767029,178.94,178.91,5.5875]
[1747956012228,0.04077029,178.94,178.91,5.5875]
[1747956012523,5.62757029,178.94,178.91,5.5875]
[1747956014222,0.04077029,178.94,178.92,5.5873]
[1747956014418,0.04077029,178.94,178.9,0.04148688]
[1747956014726,0.04077029,178.94,178.93,5.5871]
[1747956015224,0.04077029,178.94,178.9,0.04148688]
[1747956016321,0.04077029,178.94,178.92,5.5872]
[1747956016625,0.04077029,178.94,178.9,0.04148688]
[1747956016826,0.04077029,178.94,178.93,5.5871]
[1747956017028,0.04077029,178.94,178.9,0.04148688]
[1747956017635,0.04077029,178.94,178.92,5.5871]
[1747956017927,0.04077029,178.94,178.9,0.04148688]
[1747956018229,0.04077029,178.94,178.92,5.5871]
[1747956019527,5.62757029,178.94,178.9,0.04148688]
[1747956019727,0.04077029,178.94,178.9,0.04148688]
[1747956019933,0.04077029,178.94,178.83,1.9755]
[1747956020127,5.5898,178.85,178.8,4.0418]
[1747956020525,5.5898,178.85,178.82,5.5903]
[1747956020836,5.5893,178.86,178.8,4.0418]
[1747956021127,5.62754176,178.85,178.81,0.03952258]
[1747956021429,0.03774176,178.85,178.81,0.03952258]
[1747956021729,5.5904,178.83,178.81,0.03952258]
[1747956021931,0.03774176,178.85,178.81,0.03952258]
[1747956022232,5.62734176,178.85,178.82,5.5903]
[1747956022427,0.03774176,178.85,178.81,0.03952258]
[1747956023130,5.59,178.84,178.81,5.63002258]
[1747956023431,0.03774176,178.85,178.81,0.03952258]
[1747956023634,5.5905,178.82,178.81,0.03952258]
[1747956023833,111.24,178.83,178.81,0.03952258]
[1747956028747,5.5905,178.82,178.81,0.03952258]
[1747956029045,111.24,178.83,178.81,0.03952258]
[1747956029443,116.8304,178.83,178.81,0.03952258]
[1747956029941,111.24,178.83,178.81,0.03952258]
[1747956030546,116.8304,178.83,178.81,0.03952258]
[1747956032453,5.5905,178.82,178.81,0.03952258]
[1747956038548,116.8303,178.83,178.81,0.03952258]
[1747956038846,111.24,178.83,178.81,0.03952258]
[1747956040557,116.8304,178.83,178.81,0.03952258]
[1747956040757,111.24,178.83,178.81,0.03952258]
[1747956041751,0.03774176,178.85,178.81,0.03952258]
[1747956041951,5.5905,178.82,178.81,0.03952258]
[1747956046054,5.5903,178.83,178.81,0.03952258]
[1747956048469,5.59,178.84,178.81,5.63022258]
[1747956049764,5.62744176,178.85,178.82,5.5904]
[1747956049965,5.62744176,178.85,178.81,0.03952258]
[1747956050263,5.62744176,178.85,178.82,5.5904]